Department Family,Entity,Date,Expense Type,Expense area,Supplier,Transaction Number,Amount in Sterling �s incl VAT ,Supplier VAT Registration number
NHS,Glos Hospitals NHS Foundation Trust,07/06/2022,Finished processed goods,Inventories,Alloga UK Limited,000286-141,"45,000.00", 
NHS,Glos Hospitals NHS Foundation Trust,07/06/2022,Finished processed goods,Inventories,Alloga UK Limited,000286-148,"27,299.76", 
NHS,Glos Hospitals NHS Foundation Trust,14/06/2022,Finished processed goods,Inventories,Alloga UK Limited,000286-150,"45,000.00", 
NHS,Glos Hospitals NHS Foundation Trust,07/06/2022,Finished processed goods,Inventories,Janssen Cilag Limited,000286-158,"25,960.42", 
NHS,Glos Hospitals NHS Foundation Trust,07/06/2022,Finished processed goods,Inventories,Bristol Myers Squibb Pharmaceuticals Limited,000286-70,"45,126.90", 
NHS,Glos Hospitals NHS Foundation Trust,07/06/2022,Finished processed goods,Inventories,Aah Pharmaceuticals Limited,000286-92,"32,404.32", 
NHS,Glos Hospitals NHS Foundation Trust,21/06/2022,Finished processed goods,Inventories,Novartis Pharmaceuticals UK Limited,000287-4,"52,889.76", 
NHS,Glos Hospitals NHS Foundation Trust,07/06/2022,Finished processed goods,Inventories,Bayer,000287-7,"50,185.08", 
NHS,Glos Hospitals NHS Foundation Trust,14/06/2022,Finished processed goods,Inventories,Bayer,000287-9,"50,185.08", 
NHS,Glos Hospitals NHS Foundation Trust,21/06/2022,Finished processed goods,Inventories,Qualasept Ltd t/a Bath ASU,000291-133,"37,433.76", 
NHS,Glos Hospitals NHS Foundation Trust,14/06/2022,Finished processed goods,Inventories,Bayer,000291-56,"49,272.62", 
NHS,Glos Hospitals NHS Foundation Trust,14/06/2022,Finished processed goods,Inventories,Roche Products Limited,000291-65,"26,712.00", 
NHS,Glos Hospitals NHS Foundation Trust,14/06/2022,Finished processed goods,Inventories,Roche Products Limited,000291-66,"54,990.00", 
NHS,Glos Hospitals NHS Foundation Trust,21/06/2022,Finished processed goods,Inventories,Roche Products Limited,000291-67,"86,387.88", 
NHS,Glos Hospitals NHS Foundation Trust,21/06/2022,Finished processed goods,Inventories,Bayer,000292-3,"50,185.08", 
NHS,Glos Hospitals NHS Foundation Trust,14/06/2022,Finished processed goods,Inventories,Alliance Healthcare,000293-127,"68,169.60", 
NHS,Glos Hospitals NHS Foundation Trust,21/06/2022,Finished processed goods,Inventories,Alexion Pharm UK Limited,000294-1,"31,168.80", 
NHS,Glos Hospitals NHS Foundation Trust,21/06/2022,Finished processed goods,Inventories,Roche Products Limited,000296,"100,672.56", 
NHS,Glos Hospitals NHS Foundation Trust,21/06/2022,Finished processed goods,Inventories,Alloga UK Limited,000296-117,"54,000.00", 
NHS,Glos Hospitals NHS Foundation Trust,21/06/2022,Finished processed goods,Inventories,Alloga UK Limited,000296-122,"33,900.00", 
NHS,Glos Hospitals NHS Foundation Trust,21/06/2022,Finished processed goods,Inventories,Janssen Cilag Limited,000296-126,"119,232.00", 
NHS,Glos Hospitals NHS Foundation Trust,21/06/2022,Finished processed goods,Inventories,Novartis Pharmaceuticals UK Limited,000296-80,"34,725.60", 
NHS,Glos Hospitals NHS Foundation Trust,21/06/2022,Finished processed goods,Inventories,Bayer,000296-88,"49,272.62", 
NHS,Glos Hospitals NHS Foundation Trust,28/06/2022,Finished processed goods,Inventories,Bayer,000296-90,"47,447.71", 
NHS,Glos Hospitals NHS Foundation Trust,28/06/2022,Finished processed goods,Inventories,Roche Products Limited,000296-93,"76,662.85", 
NHS,Glos Hospitals NHS Foundation Trust,28/06/2022,Finished processed goods,Inventories,Roche Products Limited,000298-12,"36,863.76", 
NHS,Glos Hospitals NHS Foundation Trust,14/06/2022,ALAC: Wheelchairs,Director of Nursing,Hospital Metalcraft Limited,886276,"38,052.00", 
NHS,Glos Hospitals NHS Foundation Trust,14/06/2022,Building - External Contracts,Capital Project Control,Apleona PPP Limited,900198,"132,623.90", 
NHS,Glos Hospitals NHS Foundation Trust,14/06/2022,Purchase Computers/Systems,Capital Project Control,Hyland Software UK Limited,902550,"27,244.80", 
NHS,Glos Hospitals NHS Foundation Trust,14/06/2022,Computer Software / License  Fees,IT Contracts Shared Service,Phoenix Software Ltd,903145,"56,705.37", 
NHS,Glos Hospitals NHS Foundation Trust,07/06/2022,Medical & Surgical Equipment Maintenance Contracts,Radiography,Supply Chain Coordination Ltd - Maint. (201),906222,"38,650.09", 
NHS,Glos Hospitals NHS Foundation Trust,07/06/2022,Medical & Surgical Equip. : Finance & Op. Leases,Leases,Siemens Financial Services Limited,906413,"60,294.27", 
NHS,Glos Hospitals NHS Foundation Trust,07/06/2022,Fresh Blood & Plasma Products,Blood Products,HA73961 NHS Blood & Transplant,906578,"99,429.08", 
NHS,Glos Hospitals NHS Foundation Trust,07/06/2022,Fresh Blood & Plasma Products,Blood Products,HA73961 NHS Blood & Transplant,906579,"45,402.19", 
NHS,Glos Hospitals NHS Foundation Trust,07/06/2022,X-Ray Equipment : Maintenance,Radiography,Siemens Healthcare Limited,906961,"25,916.40", 
NHS,Glos Hospitals NHS Foundation Trust,07/06/2022,Contract : Other External,GHP Contract,Gloucester Healthcare Partnership Limited,907263,"581,059.49", 
NHS,Glos Hospitals NHS Foundation Trust,07/06/2022,Prescribing Control,Payables - Manual,HA79125 NHSBSA,907532,"118,749.08", 
NHS,Glos Hospitals NHS Foundation Trust,21/06/2022,Purchase Computers/Systems,Capital Project Control,XMA Limited,908443,"50,322.60", 
NHS,Glos Hospitals NHS Foundation Trust,21/06/2022,Laboratory Reagents,Microbiology - GRH,Abbott Rapid Diagnostics Limited,908621,"46,080.00", 
NHS,Glos Hospitals NHS Foundation Trust,28/06/2022,Other Clinical Costs,Radiography,Cobalt Health,908682,"55,072.90", 
NHS,Glos Hospitals NHS Foundation Trust,14/06/2022,Admin & Clerical - Agency,Clinical Coders,Monmouth Partners Limited,908710,"37,200.00", 
NHS,Glos Hospitals NHS Foundation Trust,21/06/2022,Medical & Surgical Equipment : Disposable,CAPD Renal,Baxter Healthcare Limited,908788,"36,861.00", 
NHS,Glos Hospitals NHS Foundation Trust,07/06/2022,NHS Logistics control,Payables - Manual,Supply Chain Coordination Ltd - Consumables,909106,"72,251.40", 
NHS,Glos Hospitals NHS Foundation Trust,07/06/2022,Contract : Other External,UC & Dividend,NHS Gloucestershire Managed Services,909111,"2,328,344.90", 
NHS,Glos Hospitals NHS Foundation Trust,07/06/2022,Contract : Other External,UC & Dividend,NHS Gloucestershire Managed Services,909112,"94,510.01", 
NHS,Glos Hospitals NHS Foundation Trust,14/06/2022,Computer Maintenance,Computing - CGH HQ,Hyland Software UK Limited,909129,"60,260.17", 
NHS,Glos Hospitals NHS Foundation Trust,07/06/2022,NHS Logistics control,Payables - Manual,Supply Chain Coordination Ltd - Consumables,909216,"169,814.73", 
NHS,Glos Hospitals NHS Foundation Trust,07/06/2022,NHS Logistics control,Payables - Manual,Supply Chain Coordination Ltd - Consumables,909217,"48,947.56", 
NHS,Glos Hospitals NHS Foundation Trust,07/06/2022,Other Clinical Costs,Radiography,Cobalt Health,909382,"56,757.00", 
NHS,Glos Hospitals NHS Foundation Trust,07/06/2022,Advertising & Staff Recruitment,Overseas Recruitment,ID Medical Group Limited,909420,"31,200.00", 
NHS,Glos Hospitals NHS Foundation Trust,07/06/2022,Rates,Rates - GRH,Gloucester City Council,909519,"209,920.00", 
NHS,Glos Hospitals NHS Foundation Trust,07/06/2022,Rates,Rates - CGH,Cheltenham Borough Council,909520,"90,624.00", 
NHS,Glos Hospitals NHS Foundation Trust,07/06/2022,Commercial Sector,Main Theatre - Non Pay only,Genmed.me Limited,909706,"1,776,123.86", 
NHS,Glos Hospitals NHS Foundation Trust,21/06/2022,Computer Maintenance,IT Contracts Shared Service,Insight Direct (UK) Limited,909762,"61,344.00", 
NHS,Glos Hospitals NHS Foundation Trust,21/06/2022,Colour Connection,Payables - Manual,Colour Connection,909856,"35,428.99", 
NHS,Glos Hospitals NHS Foundation Trust,28/06/2022,X-Ray Equipment : Maintenance,Radiography,Supply Chain Coordination Ltd - Maint. (201),909889,"82,408.10", 
NHS,Glos Hospitals NHS Foundation Trust,14/06/2022,Medical & Surgical Equipment Maintenance Contracts,Radiography,Supply Chain Coordination Ltd - Maint. (201),909890,"27,264.68", 
NHS,Glos Hospitals NHS Foundation Trust,21/06/2022,Patients Appliances : Repairs,Patient Appliances,Opcare Limited,909940,"36,767.32", 
NHS,Glos Hospitals NHS Foundation Trust,07/06/2022,Sal Sacrifice Car Scheme,Pay Deductions,Tusker Direct,910003,"45,261.43", 
NHS,Glos Hospitals NHS Foundation Trust,28/06/2022,Sal Sacrifice Car Scheme,Pay Deductions,Tusker Direct,910004,"57,153.14", 
NHS,Glos Hospitals NHS Foundation Trust,14/06/2022,Contractual Clinical Services,Renal Dialysis,B Braun Avitum UK Limited,911086,"184,195.62", 
NHS,Glos Hospitals NHS Foundation Trust,21/06/2022,Other Transport Costs,Patient Transport Services GHX,E-Zec Medical Transport Services Ltd,911428,"30,650.67", 
NHS,Glos Hospitals NHS Foundation Trust,14/06/2022,Building - External Contracts,Capital Project Control,Kier Infrastructure & Overseas Limited,911516,"1,971,628.06", 
NHS,Glos Hospitals NHS Foundation Trust,14/06/2022,X-Ray Equipment : Maintenance,Radiography,Supply Chain Coordination Ltd - Maint. (201),911567,"-30,060.72", 
NHS,Glos Hospitals NHS Foundation Trust,28/06/2022,Contractual Clinical Services,Cardiology Laboratory,AGITO Medical A/S,911745,"30,580.00", 
NHS,Glos Hospitals NHS Foundation Trust,21/06/2022,Contractual Clinical Services,Urology Specialty,The Shire Clinics Limited,911873,"25,000.00", 
NHS,Glos Hospitals NHS Foundation Trust,21/06/2022,NHS Logistics control,Payables - Manual,Supply Chain Coordination Ltd - Consumables,911944,"46,288.80", 
NHS,Glos Hospitals NHS Foundation Trust,24/06/2022,Medical & Surgical Equipment : Disposable,CAPD Renal,Baxter Healthcare Limited,911993,"-35,966.16", 
NHS,Glos Hospitals NHS Foundation Trust,24/06/2022,Medical & Surgical Equipment : Disposable,CAPD Renal,Baxter Healthcare Limited,911994,"35,966.16", 
NHS,Glos Hospitals NHS Foundation Trust,21/06/2022,Consultant - new contract,Consultants - Obs & Gynae & Gynae Onc,HA90825 Uni Hosp Bristol Weston Found Trust,912301,"100,182.00", 
NHS,Glos Hospitals NHS Foundation Trust,21/06/2022,External Contracts : Other,Smartcare,InterSystems,912401,"77,685.59", 
NHS,Glos Hospitals NHS Foundation Trust,28/06/2022,Allocate,Payables - Manual,ID Medical Group Limited,912806,"25,468.80", 
NHS,Glos Hospitals NHS Foundation Trust,28/06/2022,Pay - Agency Prof & Technical,Capital Project Control,Keystream Healthcare,913138,"42,336.00", 
NHS,Glos Hospitals NHS Foundation Trust,28/06/2022,Contractual Clinical Services,Renal Dialysis,B Braun Avitum UK Limited,913780,"179,278.82", 
NHS,Glos Hospitals NHS Foundation Trust,24/06/2022,External Consultancy Fees,Executive Directors,PricewaterhouseCoopers LLP,913897,"60,000.00", 
NHS,Glos Hospitals NHS Foundation Trust,24/06/2022,Clinical Negligence,Trustwide Finance,NHS Resolution,913999,"1,937,434.70", 
NHS,Glos Hospitals NHS Foundation Trust,28/06/2022,NHS Logistics control,Payables - Manual,Supply Chain Coordination Ltd - Consumables,914065,"39,394.58", 
NHS,Glos Hospitals NHS Foundation Trust,28/06/2022,NHS Logistics control,Payables - Manual,Supply Chain Coordination Ltd - Consumables,914080,"179,905.22", 
